fUSD/lending_fUSD_20260301
["ID","MTS","AMOUNT","RATE_DAILY","PERIOD"]
[406967140,1772370641468,-2165.52488574,0.00014622,2]
[406967141,1772370641477,-200.0,0.0001467,2]
[406967142,1772370641488,-8654.85,0.00014705,2]
[406967143,1772370641497,-157.0,0.00014808,3]
[406967144,1772370641507,-320.9602879,0.00014959,2]
[406967145,1772370641516,-166.66,0.00014965,2]
[406967146,1772370641526,-250.0,0.00015,2]
[406967147,1772370641535,-2165.52488574,0.00015278,2]
[406967148,1772370641545,-166.66,0.0001528,2]
[406967149,1772370641555,-1640.84,0.00015483,2]
[406967150,1772370641564,-300.0,0.000155,2]
[406967151,1772370641573,-166.66,0.00015595,2]
[406967152,1772370641583,-162.41,0.000156,2]
[406967153,1772370641592,-1600.0,0.00015874,2]
[406967154,1772370641601,-166.66,0.0001591,2]
[406967155,1772370641610,-2165.52488574,0.00015933,2]
[406967156,1772370641619,-7129.0,0.00015933,2]
[406967157,1772370641629,-9999.99,0.00016116,2]
[406967158,1772370641638,-150.99,0.00016116,2]
[406967159,1772370641655,-999.99,0.00016116,2]
[406967160,1772370641667,-7960.06,0.00016116,2]
[406967161,1772370641677,-299.99,0.00016116,4]
[406967162,1772370641687,-499.99,0.00016116,2]
[406967163,1772370641697,-9999.99,0.00016116,2]
[406967164,1772370641706,-8712.46,0.00016116,2]
[406967165,1772370641716,-9999.99,0.00016116,2]
[406967166,1772370641725,-150.99,0.00016116,2]
[406967167,1772370641735,-9999.99,0.00016116,2]
[406967168,1772370641745,-157.0,0.00016162,3]
[406967169,1772370641756,-5000.00551044,0.000162,5]
[406967170,1772370641766,-166.66,0.00016225,2]
[406967171,1772370641776,-153.04785948,0.00016315,2]
[406967172,1772370641785,-800.0,0.00016356,2]
[406967173,1772370641794,-600.0,0.00016356,2]
[406967174,1772370641804,-500.0,0.00016356,2]
[406967175,1772370641814,-166.66,0.0001654,2]
[406967176,1772370641823,-2165.52488574,0.00016589,2]
[406967177,1772370641833,-30000.0,0.000166,2]
[406967178,1772370641842,-3048.78958618,0.00016693,2]
[406967179,1772370641851,-663.0,0.00016712,2]
[406967180,1772370641861,-150.0,0.00016712,2]
[406967181,1772370641871,-153.06287491,0.00016712,2]
[406967182,1772370641881,-500.0,0.00016712,2]
[406967183,1772370641891,-224.99974483,0.00016712,2]
[406967184,1772370641901,-500.0,0.00016712,2]
[406967185,1772370641910,-500.0,0.00016712,2]
[406967186,1772370641920,-150.0,0.00016712,2]
[406967187,1772370641929,-166.4,0.00016712,2]
[406967188,1772370641939,-663.0,0.00016767,2]
[406967189,1772370641948,-150.0,0.00016767,2]
[406967190,1772370641958,-500.0,0.00016767,2]
[406967191,1772370641968,-558.92674215,0.00016767,2]
[406967192,1772370641978,-500.0,0.00016767,2]
[406967193,1772370641987,-185.08481033,0.000168,2]
[406967194,1772370641997,-663.0,0.00016822,2]
[406967195,1772370642008,-275.46692687,0.00016822,2]
[406967196,1772370642018,-500.0,0.00016822,2]
[406967197,1772370642027,-313.08789855,0.00016822,2]
[406967198,1772370642036,-663.0,0.00016876,2]
[406967199,1772370642046,-614.66750726,0.00016876,2]
[406967200,1772370642056,-9100.0,0.000169,6]
[406967201,1772370642066,-167.33799581,0.000169,2]
[406967202,1772370642076,-962.05876022,0.000169,2]
[406967203,1772370642085,-933.88291527,0.000169,2]
[406967204,1772370642095,-166.8729219,0.000169,2]
[406967205,1772370642104,-162.41,0.000169,2]
[406967206,1772370642114,-663.0,0.00016931,2]
[406967207,1772370642123,-150.0,0.00016973,2]
[406967208,1772370642133,-663.0,0.00016986,2]
[406967209,1772370642142,-243202.55990626,0.00017,2]
[406967210,1772370642164,-251.74415686,0.00017,2]
[406967221,1772370646307,-0.38842121,0.00017,2]
[406967222,1772370646333,-8210.77569536,0.00017,2]
[406967223,1772370646348,-800.135,0.00017,2]
[406967268,1772371312840,161.29,6.067e-05,2]
[406967269,1772371313097,161.29,6.573e-05,2]
[406967270,1772371313294,161.29,7.078e-05,2]
[406967271,1772371313500,161.29,7.584e-05,2]
[406967272,1772371313698,161.29,8.09e-05,2]
[406967273,1772371313909,161.29,8.595e-05,2]
[406967274,1772371314255,161.29,9.101e-05,2]
[406967292,1772371831337,-161.29,9.606e-05,2]
[406967293,1772371831348,-161.29,0.00010112,2]
[406967294,1772371831357,-300.0,0.00010566,2]
[406967295,1772371831367,-300.0,0.00010566,2]
[406967296,1772371831378,-1068.49,0.00010566,2]
[406967297,1772371831396,-131.51,0.00010566,2]
[406967298,1772371831406,-250.0,0.00010567,2]
[406967299,1772371831415,-218.49,0.00010567,2]
[406967300,1772371831466,-750.7917989,0.00010567,2]
[406967301,1772371831478,-2649.2,0.00010567,2]
[406967302,1772371831490,-873.26044185,0.00010567,2]
[406967303,1772371831500,-195.0,0.00010567,2]
[406967304,1772371831510,-195.0,0.00010567,2]
[406967305,1772371831520,-300.0,0.00010567,2]
[406967306,1772371831530,-250.0,0.00010567,2]
[406967307,1772371831540,-193.0,0.00010567,2]
[406967308,1772371831550,-250.0,0.00010567,2]
[406967309,1772371831559,-161.29,0.00010617,2]
[406967310,1772371831569,-327.62991,0.0001102,2]
[406967311,1772371831579,-161.29,0.00011123,2]
[406967312,1772371831589,-150.0,0.00011221,2]
[406967313,1772371831599,-7312.97,0.00011222,2]
[406967314,1772371831608,-500.0,0.00011473,2]
[406967315,1772371831618,-500.18195565,0.00011473,2]
[406967316,1772371831627,-500.0,0.00011473,2]
[406967317,1772371831636,-500.0,0.00011473,2]
[406967318,1772371831646,-500.0,0.00011473,2]
[406967319,1772371831655,-563.45104318,0.00011473,2]
[406967320,1772371831669,-500.0,0.00011473,2]
[406967321,1772371831678,-16637.98,0.00011474,2]
[406967322,1772371831688,-500.0,0.000116,2]
[406967324,1772371831698,-1600.0,0.000116,4]
[406967326,1772371831711,-420.0,0.00011616,2]
[406967328,1772371831720,-1680.0,0.00011623,2]
[406967330,1772371831730,-161.29,0.00011629,2]
[406967332,1772371831741,-3300.0,0.000117,4]
[406967334,1772371831750,-152.83663743,0.00011747,2]
[406967336,1772371831759,-150.0,0.00011747,2]
[406967338,1772371831768,-500.0,0.00011747,2]
[406967340,1772371831778,-500.0,0.00011747,2]
[406967342,1772371831787,-150.0,0.00011747,2]
[406967344,1772371831797,-500.0,0.00011747,2]
[406967346,1772371831807,-150.0,0.00011747,2]
[406967348,1772371831816,-207.76379391,0.00011747,2]
[406967350,1772371831825,-500.0,0.00011747,2]
[406967352,1772371831834,-5000.0,0.000118,4]
[406967354,1772371831843,-153.06287491,0.00011802,2]
[406967356,1772371831852,-524.99974483,0.00011802,2]
[406967357,1772371831862,-500.0,0.00011802,2]
[406967358,1772371831871,-558.92674215,0.00011802,2]
[406967359,1772371831880,-500.0,0.00011802,2]
[406967360,1772371831890,-463.08789855,0.00011857,2]
[406967361,1772371831899,-500.0,0.00011857,2]
[406967362,1772371831908,-1948.97239722,0.000119,2]
[406967363,1772371831918,-6700.0,0.000119,4]
[406967364,1772371831928,-29418.3883,0.000119,2]
[406967365,1772371831937,-3048.78958622,0.000119,2]
[406967366,1772371831946,-500.0,0.000119,2]
[406967367,1772371831955,-500.0,0.00011911,2]
[406967368,1772371831965,-500.0,0.00011966,2]
[406967369,1772371831974,-250.0,0.0001198,2]
[406967370,1772371831983,-242.0261914,0.0001199,2]
[406967371,1772371831993,-151.95157194,0.0001199,2]
[406967372,1772371832005,-151.0,0.00011993,2]
[406967373,1772371832015,-151.0,0.00011993,2]
[406967374,1772371832026,-151.0,0.00011993,2]
[406967375,1772371832035,-151.0,0.00011993,2]
[406967376,1772371832046,-151.0,0.00011993,2]
[406967377,1772371832055,-151.0,0.00011993,2]
[406967378,1772371832065,-151.0,0.00011993,2]
[406967379,1772371832074,-151.0,0.00011993,2]
[406967380,1772371832083,-151.0,0.00011993,2]
[406967381,1772371832093,-151.0,0.00011993,2]
[406967382,1772371832103,-151.0,0.00011993,2]
[406967383,1772371832112,-151.0,0.00011993,2]
[406967384,1772371832122,-151.0,0.00011993,2]
[406967385,1772371832132,-234.08,0.00011993,2]
[406967386,1772371832142,-1147.208,0.00011999,2]
[406967387,1772371832151,-179.745,0.00011999,2]
[406967388,1772371832161,-500.0,0.00011999,2]
[406967389,1772371832171,-187.21536041,0.00011999,2]
[406967390,1772371832181,-409.53936657,0.00011999,2]
[406967391,1772371832192,-178.42498811,0.00011999,2]
[406967392,1772371832202,-500.0,0.00011999,2]
[406967393,1772371832211,-53980.94868925,0.00012,2]
[406967394,1772371832226,-46584.0247369,0.00012,2]
[406967395,1772371832239,-83276.12223149,0.00012,2]
[406967396,1772371832251,-659.50442376,0.00012,2]
[406967404,1772371837414,-1986.0,0.00012,2]
[406967405,1772371837428,-5329.6013806,0.00012,2]
[406967406,1772371837476,-426.61846658,0.00012,2]
[406967592,1772371839702,-1328.355,0.00012,2]
[406967595,1772371839714,-2306428.82507142,0.00012,2]
[406967598,1772371839723,-1000.0,0.00012,2]
[406967600,1772371839734,-500.0,0.00012021,2]
[406967601,1772371839743,-1000.0,0.00012021,2]
[406967603,1772371839752,-1000.0,0.00012021,2]
[406967605,1772371839761,-614.66750726,0.00012021,2]
[406967607,1772371839770,-161.29,0.00012134,2]
[406967609,1772371839780,-234.08,0.00012267,2]
[406967611,1772371839789,-255.0,0.00012275,2]
[406967613,1772371839799,-6997.43490473,0.00012463,2]
[406967615,1772371839808,-234.08,0.00012541,2]
[406967617,1772371839817,-1948.97239716,0.00012567,2]
[406967619,1772371839826,-3048.78958618,0.00012567,2]
[406967621,1772371839835,-500.0,0.00012568,2]
[406967623,1772371839844,-587.0,0.0001277,2]
[406967625,1772371839854,-1151.0,0.00012785,2]
[406967627,1772371839863,-500.0,0.00012805,2]
[406967629,1772371839872,-234.08,0.00012815,2]
[406967631,1772371839880,-500.0,0.0001286,2]
[406967633,1772371839890,-500.0,0.00012915,2]
[406967634,1772371839899,-575.46692687,0.00012969,2]
[406967636,1772371839908,-202.92107206,0.0001302,2]
[406967638,1772371839917,-234.1,0.00013089,2]
[406967640,1772371839927,-1948.97239716,0.00013233,2]
[406967642,1772371839936,-3048.78958618,0.00013233,2]
[406967644,1772371839945,-3240.0,0.00013425,2]
[406967646,1772371839954,-283.0,0.00013431,2]
[406967648,1772371839964,-500.0,0.00013698,2]
[406967650,1772371839973,-500.0,0.00013698,2]
[406967652,1772371839982,-500.0,0.00013698,2]
[406967654,1772371839993,-500.0,0.00013698,2]
[406967656,1772371840003,-500.0,0.00013698,2]
[406967658,1772371840012,-500.0,0.00013698,2]
[406967660,1772371840021,-152.43247842,0.00013698,2]
[406967662,1772371840030,-500.0,0.00013698,2]
[406967664,1772371840039,-500.0,0.00013698,2]
[406967665,1772371840049,-500.0,0.00013698,2]
[406967668,1772371840069,-500.0,0.00013698,2]
[406967671,1772371840080,-500.0,0.00013698,2]
[406967673,1772371840091,-500.0,0.00013698,2]
[406967675,1772371840100,-330.61629648,0.00013698,2]
[406967677,1772371840109,-500.0,0.00013698,2]
[406967679,1772371840118,-500.0,0.00013698,2]
[406967680,1772371840128,-500.0,0.00013698,2]
[406967682,1772371840138,-500.0,0.00013698,2]
[406967684,1772371840147,-500.0,0.00013698,2]
[406967704,1772371840157,-500.0,0.00013698,2]
[406967707,1772371840346,-564.87520289,0.00013698,2]
[406967708,1772371840356,-150.0,0.00013836,2]
[406967710,1772371840366,-500.0,0.00013836,2]
[406967712,1772371840376,-500.0,0.00013891,2]
[406967715,1772371840387,-150.0,0.00013891,2]
[406967716,1772371840396,-1948.97239716,0.000139,2]
[406967718,1772371840405,-3048.78958618,0.000139,2]
[406967720,1772371840415,-453.99807212,0.00013946,2]
[406967722,1772371840424,-150.0,0.00013946,2]
[406967724,1772371840434,-150.0,0.00014,2]
[406967726,1772371840443,-823.0,0.00014039,2]
[406967729,1772371840453,-267.19273963,0.00014055,2]
[406967730,1772371840463,-519.0,0.0001411,2]
[406967732,1772371840472,-933.88291527,0.00014173,2]
[406967734,1772371840481,-167.33799581,0.00014173,2]
[406967736,1772371840491,-5939.64,0.00014181,2]
[406967738,1772371840500,-9435.89,0.00014273,2]
[406967740,1772371840510,-962.05876022,0.00014369,2]
[406967742,1772371840520,-200.0,0.00014469,2]
[406967745,1772371840529,-9999.99,0.00014504,2]
[406967747,1772371840539,-999.99,0.00014504,2]
[406967749,1772371840548,-150.99,0.00014504,2]
[406967751,1772371840558,-9999.99,0.00014504,2]
[406967753,1772371840568,-8712.46,0.00014504,2]
[406967755,1772371840577,-299.99,0.00014504,2]
[406967757,1772371840586,-150.99,0.00014504,2]
[406967759,1772371840595,-9999.99,0.00014504,2]
[406967761,1772371840605,-9999.99,0.00014504,2]
[406967763,1772371840614,-1948.97239716,0.00014567,2]
[406967765,1772371840624,-3048.78958618,0.00014567,2]
[406967767,1772371840633,-1500.0,0.00014571,2]
[406967769,1772371840643,-2978.97,0.00015083,2]
[406967771,1772371840652,-1948.97239716,0.00015233,2]
[406967773,1772371840663,-3048.78958618,0.00015233,2]
[406967775,1772371840672,-150.0,0.00015477,2]
[406967777,1772371840682,-1948.97239716,0.000159,2]
[406967779,1772371840691,-3048.78958618,0.000159,2]
[406967781,1772371840701,-933.88291526,0.00016037,2]
[406967783,1772371840710,-900.0,0.0001604,2]
[406967785,1772371840720,-700.0,0.00016082,2]
[406967787,1772371840729,-2200.0,0.00016082,2]
[406967789,1772371840738,-7960.06,0.00016116,2]
[406967791,1772371840747,-962.05876022,0.00016135,2]
[406967793,1772371840757,-2000.0,0.000162,2]
[406967795,1772371840766,-219.8714796,0.00016227,2]
[406967797,1772371840775,-153.04785948,0.00016331,2]
[406967799,1772371840784,-600.0,0.00016356,2]
[406967801,1772371840793,-500.0,0.00016411,2]
[406967803,1772371840803,-663.0,0.00016438,2]
[406967804,1772371840812,-160.0,0.00016448,2]
[406967806,1772371840821,-174.09452548,0.00016448,2]
[406967809,1772371840841,-1953.56,0.00016483,2]
[406967811,1772371840850,-663.0,0.00016493,2]
[406967813,1772371840860,-2614.0,0.000165,2]
[406967815,1772371840869,-663.0,0.00016548,2]
[406967816,1772371840879,-1948.97239716,0.00016567,2]
[406967818,1772371840888,-3048.78958618,0.00016567,2]
[406967821,1772371840898,-2000.0,0.00016583,2]
[406967822,1772371840908,-663.0,0.00016602,2]
[406967825,1772371840918,-12316.36,0.00016643,2]
[406967826,1772371840929,-663.0,0.00016657,2]
[406967829,1772371840943,-663.0,0.00016712,2]
[406967831,1772371840952,-663.0,0.00016767,2]
[406967833,1772371840962,-200.0,0.00016792,2]
[406967835,1772371840971,-2000.0,0.000168,2]
[406967837,1772371840981,-150.0,0.00016803,2]
[406967839,1772371840990,-663.0,0.00016822,2]
[406967841,1772371840999,-77746.49848454,0.0001683,2]
[406967843,1772371841010,-6446.6597135,0.00016861,2]
[406967845,1772371841019,-1704.5697053,0.00016861,2]
[406967847,1772371841029,-23486.6367654,0.00016861,2]
[406967849,1772371841038,-8298.6341487,0.00016861,2]
[406967851,1772371841048,-147186.2073941,0.00016861,2]
[406967853,1772371841057,-663.0,0.00016876,2]
[406967855,1772371841067,-166.66,0.00016878,2]
[406967857,1772371841076,-1953.56,0.00016895,2]
[406967859,1772371841086,-663.0,0.00016931,2]
[406967861,1772371841095,-1625.807964,0.00016958,7]
[406967863,1772371841104,-5430.44361,0.00016958,7]
[406967865,1772371841114,-663.0,0.00016986,2]
[406967867,1772371841123,-17973.51476483,0.00017,2]
[406967869,1772371841133,-300.0,0.00017,2]
[406967871,1772371841143,-166.0,0.00017,3]
[406967873,1772371841153,-157.0,0.00017,3]
[406967875,1772371841162,-2000.0,0.0001701,2]
[406967877,1772371841171,-151.0,0.0001702,2]
[406967879,1772371841181,-578.20924308,0.0001702,2]
[406967880,1772371841191,-644.79446246,0.0001702,2]
[406967882,1772371841201,-500.0,0.0001702,2]
[406967884,1772371841210,-500.0,0.0001702,2]
[406967886,1772371841221,-500.0,0.0001702,2]
[406967888,1772371841231,-500.0,0.0001702,2]
[406967890,1772371841241,-500.0,0.0001702,2]
[406967892,1772371841252,-500.0,0.0001702,2]
[406967894,1772371841263,-500.0,0.0001702,2]
[406967896,1772371841273,-500.0,0.0001702,2]
[406967898,1772371841283,-500.0,0.0001702,2]
[406967901,1772371841292,-500.0,0.0001702,2]
[406967903,1772371841303,-500.0,0.0001702,2]
[406967905,1772371841313,-500.0,0.0001702,2]
[406967907,1772371841323,-500.0,0.0001702,2]
[406967909,1772371841333,-663.0,0.00017041,2]
[406967910,1772371841343,-186.89,0.00017043,2]
[406967912,1772371841353,-151.0,0.00017075,2]
[406967914,1772371841363,-668.65185757,0.00017075,2]
[406967916,1772371841373,-352.47562623,0.00017081,2]
[406967918,1772371841383,-663.0,0.00017096,2]
[406967921,1772371841392,-158.373817,0.000171,2]
[406967923,1772371841402,-1800.0,0.000171,2]
[406967924,1772371841412,-171.2232,0.0001711,2]
[406967926,1772371841421,-171.2232,0.0001711,2]
[406967928,1772371841430,-171.2232,0.0001711,2]
[406967930,1772371841439,-171.2232,0.0001711,2]
[406967932,1772371841449,-171.2232,0.0001711,2]
[406967934,1772371841459,-171.2232,0.0001711,2]
[406967936,1772371841468,-1779.71,0.0001711,7]
[406967938,1772371841477,-168.0,0.00017117,2]
[406967940,1772371841487,-151.0,0.0001713,2]
[406967942,1772371841497,-693.3919763,0.0001713,2]
[406967944,1772371841507,-663.0,0.0001715,2]
[406967946,1772371841518,-1445.0,0.00017152,2]
[406967948,1772371841527,-796.0,0.00017152,2]
[406967950,1772371841536,-151.0,0.00017185,2]
[406967952,1772371841554,-719.04747942,0.00017185,2]
[406967954,1772371841563,-663.0,0.00017205,2]
[406967956,1772371841573,-1948.97239716,0.00017233,2]
[406967958,1772371841583,-3048.78958618,0.00017233,2]
[406967960,1772371841593,-745.65223616,0.0001724,2]
[406967962,1772371841603,-663.0,0.0001726,2]
[406967964,1772371841612,-773.2413689,0.00017295,2]
[406967966,1772371841621,-1953.56,0.00017307,2]
[406967968,1772371841630,-663.0,0.00017315,2]
[406967969,1772371841639,-168.0,0.0001735,2]
[406967971,1772371841649,-801.85129955,0.0001735,2]
[406967973,1772371841659,-160.0,0.0001736,2]
[406967975,1772371841673,-845.0,0.0001736,2]
[406967977,1772371841683,-1639.0,0.0001736,2]
[406967980,1772371841692,-845.0,0.0001736,2]
[406967982,1772371841702,-663.0,0.0001737,2]
[406967984,1772371841713,-2000.0,0.000174,2]
[406967985,1772371841723,-831.51979763,0.00017405,2]
[406967988,1772371841734,-900.0,0.0001741,2]
[406967990,1772371841744,-663.0,0.00017424,2]
[406967991,1772371841753,-700.0,0.00017452,7]
[406967993,1772371841764,-2200.0,0.00017452,7]
[406967995,1772371841773,-862.28603014,0.0001746,2]
[406967997,1772371841782,-663.0,0.00017479,2]
[406967999,1772371841792,-291.0,0.00017496,2]
[406968001,1772371841802,-21435.49475821,0.000175,2]
[406968180,1772371845146,-327.40315169,0.00011899,2]
[406968184,1772371845321,-743.8070531,0.00011899,2]
[406968242,1772373031583,-500.0,0.00011473,2]
[406968243,1772373031594,-500.0,0.00011473,2]
[406968244,1772373031604,-247.3537874,0.00011686,2]
[406968245,1772373031613,-166.0,0.00011899,3]
[406968246,1772373031624,-157.0,0.00011899,3]
[406968247,1772373031633,-1000.0,0.000119,2]
[406968248,1772373031643,-350.06934174,0.00012021,2]
[406968249,1772373031652,-500.0,0.0001262,2]
[406968250,1772373031661,-250.0,0.0001262,2]
[406968251,1772373031671,-298.5277493,0.0001262,2]
[406968252,1772373031691,-1.4722507,0.0001262,2]
[406968253,1772373031701,-157.0,0.00013278,3]
[406968254,1772373031710,-1024.70363468,0.00013519,2]
[406968255,1772373031719,-519.0,0.0001411,2]
[406968256,1772373031729,-352.0,0.00014657,2]
[406968257,1772373031737,-716.48,0.00014658,2]
[406968258,1772373031746,-499.99,0.00014658,2]
[406968259,1772373031756,-6580.04,0.00014658,2]
[406968260,1772373031766,-1145.54288011,0.00014658,2]
[406968261,1772373031778,-2822.57780245,0.00014658,2]
[406968273,1772373045204,-1376.99980761,0.00014658,2]
[406968274,1772373045318,-1139.33803329,0.00014658,2]
[406968275,1772373045377,-2176.11648567,0.00014658,2]
[406968277,1772373045391,-506.55842767,0.00014658,2]
[406968279,1772373045497,-832.8565632,0.00014658,2]
[406968280,1772373045507,-150.99,0.00014658,2]
[406968281,1772373045518,-157.0,0.00014658,3]
[406968282,1772373045528,-482.99568502,0.00014866,2]
[406968283,1772373045538,-166.66,0.00014887,2]
[406968284,1772373045548,-168.0,0.00014931,2]
[406968285,1772373045558,-154.897365,0.0001494,7]
[406968286,1772373045568,-250.0,0.00015,2]
[406968287,1772373045577,-166.66,0.00015201,2]
[406968288,1772373045587,-166.66,0.00015514,2]
[406968289,1772373045596,-200.0,0.00015703,2]
[406968290,1772373045606,-500.0,0.00015726,2]
[406968291,1772373045620,-500.0,0.00015771,2]
[406968292,1772373045630,-1640.84,0.0001579,2]
[406968293,1772373045640,-166.66,0.00015827,2]
[406968294,1772373045650,-1600.0,0.00015916,2]
[406968295,1772373045660,-162.41,0.00015917,2]
[406968296,1772373045670,-157.0,0.00016037,3]
[406968297,1772373045680,-1000.0,0.00016057,2]
[406968298,1772373045690,-151.0,0.00016072,2]
[406968299,1772373045699,-193.33688882,0.00016072,2]
[406968300,1772373045709,-700.0,0.00016082,2]
[406968301,1772373045719,-1800.0,0.00016082,2]
[406968302,1772373045728,-166.66,0.00016141,2]
[406968303,1772373045738,-153.04785948,0.00016318,2]
[406968304,1772373045747,-500.0,0.00016356,2]
[406968305,1772373045757,-604.6533937,0.000164,2]
[406968316,1772373938858,-158.0,0.00011899,3]
[406968317,1772373968105,158.0,0.00011899,3]
[406968318,1772374028648,158.0,0.00011899,3]
[406968320,1772374087226,67.51020056,0.00011899,3]
[406968338,1772374231610,-1969.03,0.00013184,2]
[406968340,1772374231621,-2500.0,0.00014046,2]
[406968342,1772374231631,-2500.0,0.00014046,2]
[406968345,1772374231640,-2500.0,0.00014046,2]
[406968348,1772374231650,-2500.0,0.00014046,2]
[406968351,1772374231660,-519.0,0.0001411,2]
[406968354,1772374231670,-600.0,0.00014255,2]
[406968359,1772374231689,-600.0,0.00014255,2]
[406968360,1772374231700,-412.643462,0.00014255,2]
[406968361,1772374231718,-187.356538,0.00014255,2]
[406968362,1772374231728,-241.47352623,0.00014255,2]
[406968363,1772374231750,-503.39806595,0.00014255,2]
[406968364,1772374231761,-600.0,0.00014502,2]
[406968365,1772374231772,-286.24752804,0.00014502,2]
[406968366,1772374231782,-2500.0,0.00014502,2]
[406968367,1772374231791,-150.67217593,0.00014502,2]
[406968368,1772374231802,-566.210058,0.00014756,2]
[406968369,1772374231811,-8445.05138272,0.00014756,2]
[406968370,1772374231825,-1638.18856478,0.00014756,2]
[406968371,1772374231835,-434.0539354,0.00014756,2]
[406968372,1772374231845,-1222.20749982,0.0001479,2]
[406968373,1772374231857,-537.19700268,0.0001479,2]
[406968374,1772374231867,-199.34299481,0.00014954,2]
[406968375,1772374231879,-0.65700519,0.00014954,2]
[406968376,1772374231888,-967.39249481,0.0001496,2]
[406968377,1772374231900,-2002.42750519,0.0001496,2]
[406968378,1772374231909,-250.0,0.00015,2]
[406968379,1772374231919,-3240.0,0.00015067,2]
[406968380,1772374231929,-1500.0,0.00015114,2]
[406968383,1772374231939,-166.68,0.00015147,2]
[406968385,1772374231948,-402.16771203,0.00015562,2]
[406968387,1772374231958,-331.36472516,0.00015562,2]
[406968389,1772374231967,-800.0,0.000156,5]
[406968391,1772374231977,-3681.0051434,0.000156,2]
[406968394,1772374231986,-389.79447945,0.000156,2]
[406968396,1772374231996,-151.95157194,0.00015616,2]
[406968399,1772374232005,-151.0,0.00015623,2]
[406968401,1772374232014,-1419.909,0.00015625,2]
[406968404,1772374232024,-172.152,0.00015625,2]
[406968406,1772374232033,-636.67755659,0.00015625,2]
[406968408,1772374232042,-289891.40685391,0.00015626,2]
[406968409,1772374232053,-683.04292449,0.00015626,2]
[406968410,1772374232068,-400.45,0.00015626,2]
[406968411,1772374232092,-969.80549567,0.00015626,2]
[406968412,1772374232103,-19124.97581632,0.00015626,2]
[406968421,1772374237880,-67176.99999999,0.00014656,2]
[406968422,1772374237891,-915.68180285,0.00014656,2]
[406968429,1772374239938,-701.4014061,0.00014656,2]
[406968430,1772374239951,-2788.33498197,0.00014656,2]
[406968431,1772374239963,-2011.41335525,0.00014656,2]
[406968432,1772374239975,-761.739998,0.00014656,2]
[406968433,1772374240154,-21018.88735963,0.00014656,2]
[406968452,1772374242858,-16768.5,0.00014656,2]
[406968453,1772374242869,-824.0,0.00014656,2]
[406968528,1772374245640,-36198.14752852,0.00014656,2]
[406968529,1772374245652,-793.1136,0.00014656,2]
[406968530,1772374245701,-881.45672485,0.00014656,2]
[406968531,1772374245713,-597.0893303,0.00014656,2]
[406968532,1772374245724,-490.27153015,0.00014656,2]
[406968533,1772374245735,-335.819307,0.00014656,2]
[406968534,1772374245766,-4583.99185758,0.00014656,2]
[406968535,1772374245938,-445.5,0.00014656,2]
[406968536,1772374245997,-946.61928768,0.00014656,2]
[406968537,1772374246056,-4082.94643604,0.00014656,2]
[406968538,1772374246067,-329.7,0.00014656,2]
[406968612,1772374516537,199.69,7.686e-05,2]
[406968614,1772374646996,972.07511173,9.003e-05,2]
[406968638,1772375431837,-199.69,0.00011529,2]
[406968640,1772375431847,-892.0,0.00012069,2]
[406968642,1772375431859,-500.0,0.0001207,2]
[406968643,1772375431868,-434.33702745,0.0001207,2]
[406968644,1772375431877,-500.0,0.0001207,2]
[406968646,1772375431889,-500.0,0.0001207,2]
[406968648,1772375431898,-500.0,0.0001207,2]